fUST/lending_fUST_20250626
["ID","MTS","AMOUNT","RATE_DAILY","PERIOD"]
[367804663,1750933847147,-460.0,0.00016986,2]
[367804665,1750933847156,-460.0,0.00016986,2]
[367804667,1750933847165,-460.0,0.00016986,2]
[367804669,1750933847174,-460.0,0.00016986,2]
[367804671,1750933847184,-592.99146106,0.00016986,2]
[367804673,1750933847199,-460.0,0.00016986,2]
[367804675,1750933847208,-556.41,0.00016986,2]
[367804677,1750933847217,-465.88004707,0.00016986,2]
[367804678,1750933847226,-344.07326253,0.00016986,2]
[367804680,1750933847236,-460.0,0.00016986,2]
[367804682,1750933847245,-1801.03,0.00016986,2]
[367804684,1750933847254,-460.0,0.00016986,2]
[367804686,1750933847264,-1794.47,0.00016986,2]
[367804687,1750933847273,-462.75461772,0.00016986,2]
[367804688,1750933847283,-460.0,0.00016986,2]
[367804689,1750933847292,-442.90334112,0.00016986,2]
[367804690,1750933847301,-460.0,0.00016986,2]
[367804691,1750933847310,-460.0,0.00016986,2]
[367804692,1750933847319,-1099.8,0.00016986,2]
[367804693,1750933847328,-343.37,0.00016986,2]
[367804694,1750933847337,-612.7,0.00016986,2]
[367804695,1750933847346,-460.0,0.00016986,2]
[367804696,1750933847355,-460.0,0.00016986,2]
[367804697,1750933847364,-460.0,0.00016986,2]
[367804698,1750933847373,-460.0,0.00016986,2]
[367804699,1750933847383,-2903.12,0.00016986,2]
[367804700,1750933847392,-460.0,0.00016986,2]
[367804701,1750933847401,-1414.34,0.00016986,2]
[367804702,1750933847410,-724.47,0.00016986,2]
[367804703,1750933847419,-460.0,0.00016986,2]
[367804704,1750933847428,-460.0,0.00016986,2]
[367804705,1750933847437,-460.0,0.00016986,2]
[367804706,1750933847450,-467.00975208,0.00016986,2]
[367804708,1750933847459,-463.24,0.00016986,2]
[367804709,1750933847467,-3629.9,0.00016986,2]
[367804711,1750933847477,-1491.13,0.00016986,2]
[367804713,1750933847486,-460.0,0.00016986,2]
[367804715,1750933847495,-200.11682449,0.00016986,2]
[367804717,1750933847505,-460.0,0.00016986,2]
[367804719,1750933847514,-460.0,0.00016986,2]
[367804721,1750933847523,-460.0,0.00016986,2]
[367804723,1750933847532,-460.0,0.00016986,2]
[367804725,1750933847541,-3220.69,0.00016986,2]
[367804727,1750933847551,-460.0,0.00016986,2]
[367804729,1750933847560,-1275.24,0.00016986,2]
[367804731,1750933847570,-958.7,0.00016986,2]
[367804733,1750933847579,-460.0,0.00016986,2]
[367804735,1750933847588,-460.0,0.00016986,2]
[367804737,1750933847598,-572.45,0.00016986,2]
[367804739,1750933847607,-460.0,0.00016986,2]
[367804741,1750933847617,-460.0,0.00016986,2]
[367804743,1750933847626,-460.0,0.00016986,2]
[367804745,1750933847635,-460.0,0.00016986,2]
[367804747,1750933847644,-460.0,0.00016986,2]
[367804749,1750933847654,-460.0,0.00016986,2]
[367804751,1750933847662,-1002.89,0.00016986,2]
[367804753,1750933847672,-460.0,0.00016986,2]
[367804755,1750933847681,-460.0,0.00016986,2]
[367804756,1750933847691,-460.0,0.00016986,2]
[367804758,1750933847701,-460.0,0.00016986,2]
[367804760,1750933847710,-739.13,0.00016986,2]
[367804762,1750933847719,-460.0,0.00016986,2]
[367804764,1750933847729,-460.0,0.00016986,2]
[367804766,1750933847738,-1427.44,0.00016986,2]
[367804768,1750933847747,-460.0,0.00016986,2]
[367804770,1750933847757,-460.0,0.00016986,2]
[367804772,1750933847766,-460.0,0.00016986,2]
[367804774,1750933847777,-1553.5,0.00016986,2]
[367804776,1750933847786,-1338.84,0.00016986,2]
[367804778,1750933847796,-551.66252154,0.00016986,2]
[367804780,1750933847806,-460.0,0.00016986,2]
[367804782,1750933847815,-460.0,0.00016986,2]
[367804784,1750933847824,-460.0,0.00016986,2]
[367804786,1750933847833,-460.0,0.00016986,2]
[367804788,1750933847842,-460.0,0.00016986,2]
[367804790,1750933847851,-1072.36,0.00016986,2]
[367804792,1750933847861,-633.4,0.00016986,2]
[367804793,1750933847870,-460.0,0.00016986,2]
[367804795,1750933847878,-460.0,0.00016986,2]
[367804797,1750933847887,-260.91597957,0.00016986,2]
[367804799,1750933847896,-460.0,0.00016986,2]
[367804801,1750933847905,-460.0,0.00016986,2]
[367804803,1750933847914,-460.0,0.00016986,2]
[367804805,1750933847923,-440.0,0.00016986,2]
[367804807,1750933847932,-1714.32,0.00016986,2]
[367804809,1750933847942,-460.0,0.00016986,2]
[367804811,1750933847952,-460.0,0.00016986,2]
[367804813,1750933847960,-460.0,0.00016986,2]
[367804815,1750933847970,-460.0,0.00016986,2]
[367804817,1750933847979,-460.0,0.00016986,2]
[367804819,1750933847988,-603.10858403,0.00016986,2]
[367804821,1750933847998,-460.0,0.00016986,2]
[367804823,1750933848007,-791.06,0.00016986,2]
[367804825,1750933848016,-484.13,0.00016986,2]
[367804827,1750933848025,-460.0,0.00016986,2]
[367804829,1750933848034,-460.0,0.00016986,2]
[367804831,1750933848043,-460.0,0.00016986,2]
[367804833,1750933848053,-460.0,0.00016986,2]
[367804835,1750933848063,-738.04,0.00016986,2]
[367804837,1750933848073,-542.93118438,0.00016986,2]
[367804839,1750933848082,-7127.92680581,0.00017,2]
[367804841,1750933848091,-637.47031252,0.00017023,2]
[367804843,1750933848101,-500.0,0.00017029,2]
[367804845,1750933848111,-500.92098128,0.00017051,2]
[367804847,1750933848121,-501.20939308,0.00017051,2]
[367804849,1750933848131,-500.0,0.00017051,2]
[367804851,1750933848139,-500.0,0.00017051,2]
[367804853,1750933848149,-233.92212399,0.00017089,2]
[367804855,1750933848158,-2331.10469927,0.00017176,2]
[367804857,1750933848171,-550.12,0.00017258,2]
[367804859,1750933848180,-550.12,0.00017258,2]
[367804861,1750933848191,-550.12,0.00017258,2]
[367804863,1750933848200,-550.12,0.00017258,2]
[367804865,1750933848211,-550.12,0.00017258,2]
[367804866,1750933848220,-550.12,0.00017258,2]
[367804868,1750933848230,-550.33107673,0.00017258,2]
[367804870,1750933848240,-460.0,0.0001726,2]
[367804872,1750933848251,-460.0,0.0001726,2]
[367804874,1750933848260,-151.0,0.0001726,2]
[367804876,1750933848270,-151.0,0.0001726,2]
[367804888,1750933848376,-151.0,0.0001726,2]
[367804890,1750933848387,-460.0,0.0001726,2]
[367804892,1750933848397,-460.0,0.0001726,2]
[367804894,1750933848406,-460.0,0.0001726,2]
[367804896,1750933848416,-227.99468437,0.0001726,2]
[367804898,1750933848426,-460.0,0.0001726,2]
[367804900,1750933848435,-460.0,0.0001726,2]
[367804902,1750933848446,-160.10813448,0.0001726,2]
[367804904,1750933848455,-460.0,0.0001726,2]
[367804906,1750933848464,-460.0,0.0001726,2]
[367804908,1750933848474,-460.0,0.0001726,2]
[367804910,1750933848483,-460.0,0.0001726,2]
[367804912,1750933848492,-451.58901948,0.0001726,2]
[367804914,1750933848502,-460.0,0.0001726,2]
[367804916,1750933848511,-460.0,0.0001726,2]
[367804918,1750933848520,-463.41,0.0001726,2]
[367804920,1750933848529,-460.0,0.0001726,2]
[367804922,1750933848539,-460.0,0.0001726,2]
[367804924,1750933848549,-591.06,0.0001726,2]
[367804926,1750933848558,-284.35057445,0.0001726,2]
[367804928,1750933848567,-485.13560277,0.0001726,2]
[367804930,1750933848578,-460.0,0.0001726,2]
[367804932,1750933848588,-460.0,0.0001726,2]
[367804934,1750933848597,-460.0,0.0001726,2]
[367804936,1750933848607,-460.0,0.0001726,2]
[367804938,1750933848616,-488.51603678,0.0001726,2]
[367804940,1750933848626,-460.0,0.0001726,2]
[367804942,1750933848635,-460.0,0.0001726,2]
[367804944,1750933848644,-460.0,0.0001726,2]
[367804946,1750933848654,-460.0,0.0001726,2]
[367804948,1750933848664,-165.0,0.0001726,2]
[367804950,1750933848674,-1441.7,0.0001726,2]
[367804952,1750933848684,-460.0,0.0001726,2]
[367804954,1750933848695,-460.0,0.0001726,2]
[367804956,1750933848705,-460.0,0.0001726,2]
[367804958,1750933848714,-460.0,0.0001726,2]
[367804960,1750933848724,-460.0,0.0001726,2]
[367804962,1750933848734,-460.0,0.0001726,2]
[367804964,1750933848743,-460.0,0.0001726,2]
[367804966,1750933848753,-460.0,0.0001726,2]
[367804968,1750933848763,-460.0,0.0001726,2]
[367804969,1750933848773,-460.0,0.0001726,2]
[367804971,1750933848782,-460.0,0.0001726,2]
[367804973,1750933848792,-460.0,0.0001726,2]
[367804976,1750933848804,-460.0,0.0001726,2]
[367804977,1750933848814,-460.0,0.0001726,2]
[367804980,1750933848823,-460.0,0.0001726,2]
[367804982,1750933848833,-460.0,0.0001726,2]
[367804984,1750933848843,-460.0,0.0001726,2]
[367804986,1750933848852,-460.0,0.0001726,2]
[367804987,1750933848863,-460.0,0.0001726,2]
[367804989,1750933848872,-1648.71,0.0001726,2]
[367804991,1750933848881,-460.0,0.0001726,2]
[367804993,1750933848891,-460.0,0.0001726,2]
[367804995,1750933848900,-1081.94,0.0001726,2]
[367804997,1750933848910,-460.0,0.0001726,2]
[367804999,1750933848920,-518.88,0.0001726,2]
[367805001,1750933848930,-460.0,0.0001726,2]
[367805003,1750933848939,-460.0,0.0001726,2]
[367805005,1750933848949,-460.0,0.0001726,2]
[367805007,1750933848959,-460.0,0.0001726,2]
[367805009,1750933848969,-460.0,0.0001726,2]
[367805011,1750933848979,-815.12,0.0001726,2]
[367805013,1750933848988,-460.0,0.0001726,2]
[367805015,1750933848998,-460.0,0.0001726,2]
[367805017,1750933849008,-460.0,0.0001726,2]
[367805019,1750933849018,-460.0,0.0001726,2]
[367805021,1750933849028,-460.0,0.0001726,2]
[367805023,1750933849038,-460.0,0.0001726,2]
[367805025,1750933849047,-224.63,0.0001726,2]
[367805027,1750933849057,-556.41,0.0001726,2]
[367805029,1750933849066,-460.0,0.0001726,2]
[367805031,1750933849076,-1801.03,0.0001726,2]
[367805033,1750933849086,-460.0,0.0001726,2]
[367805035,1750933849095,-1794.47,0.0001726,2]
[367805037,1750933849105,-460.0,0.0001726,2]
[367805039,1750933849115,-460.0,0.0001726,2]
[367805041,1750933849124,-460.0,0.0001726,2]
[367805043,1750933849134,-1099.8,0.0001726,2]
[367805045,1750933849144,-612.7,0.0001726,2]
[367805047,1750933849154,-460.0,0.0001726,2]
[367805049,1750933849163,-169.97346394,0.0001726,2]
[367805051,1750933849173,-460.0,0.0001726,2]
[367805052,1750933849183,-460.0,0.0001726,2]
[367805054,1750933849193,-2903.12,0.0001726,2]
[367805057,1750933849203,-1414.34,0.0001726,2]
[367805059,1750933849213,-724.47,0.0001726,2]
[367805061,1750933849223,-460.0,0.0001726,2]
[367805063,1750933849233,-460.0,0.0001726,2]
[367805065,1750933849242,-460.0,0.0001726,2]
[367805066,1750933849252,-463.24,0.0001726,2]
[367805068,1750933849261,-3629.9,0.0001726,2]
[367805070,1750933849271,-1491.13,0.0001726,2]
[367805072,1750933849280,-460.0,0.0001726,2]
[367805074,1750933849289,-460.0,0.0001726,2]
[367805077,1750933849299,-460.0,0.0001726,2]
[367805079,1750933849309,-460.0,0.0001726,2]
[367805081,1750933849319,-460.0,0.0001726,2]
[367805083,1750933849328,-3220.69,0.0001726,2]
[367805084,1750933849338,-460.0,0.0001726,2]
[367805086,1750933849347,-1275.24,0.0001726,2]
[367805088,1750933849356,-958.7,0.0001726,2]
[367805090,1750933849366,-460.0,0.0001726,2]
[367805092,1750933849376,-460.0,0.0001726,2]
[367805094,1750933849386,-572.45,0.0001726,2]
[367805096,1750933849396,-460.0,0.0001726,2]
[367805098,1750933849405,-460.0,0.0001726,2]
[367805100,1750933849415,-460.0,0.0001726,2]
[367805102,1750933849424,-460.0,0.0001726,2]
[367805104,1750933849433,-460.0,0.0001726,2]
[367805106,1750933849444,-1002.89,0.0001726,2]
[367805108,1750933849453,-460.0,0.0001726,2]
[367805109,1750933849462,-460.0,0.0001726,2]
[367805111,1750933849471,-460.0,0.0001726,2]
[367805113,1750933849480,-460.0,0.0001726,2]
[367805115,1750933849490,-739.13,0.0001726,2]
[367805116,1750933849500,-460.0,0.0001726,2]
[367805118,1750933849509,-460.0,0.0001726,2]
[367805120,1750933849518,-1427.44,0.0001726,2]
[367805121,1750933849528,-460.0,0.0001726,2]
[367805123,1750933849537,-460.0,0.0001726,2]
[367805125,1750933849546,-1553.5,0.0001726,2]
[367805126,1750933849555,-1338.84,0.0001726,2]
[367805128,1750933849565,-460.0,0.0001726,2]
[367805130,1750933849574,-460.0,0.0001726,2]
[367805132,1750933849584,-460.0,0.0001726,2]
[367805133,1750933849593,-460.0,0.0001726,2]
[367805135,1750933849602,-1072.36,0.0001726,2]
[367805137,1750933849612,-633.4,0.0001726,2]
[367805138,1750933849621,-460.0,0.0001726,2]
[367805140,1750933849630,-460.0,0.0001726,2]
[367805142,1750933849639,-460.0,0.0001726,2]
[367805144,1750933849648,-460.0,0.0001726,2]
[367805145,1750933849658,-1714.32,0.0001726,2]
[367805147,1750933849668,-460.0,0.0001726,2]
[367805149,1750933849677,-460.0,0.0001726,2]
[367805150,1750933849687,-460.0,0.0001726,2]
[367805152,1750933849697,-460.0,0.0001726,2]
[367805154,1750933849707,-791.06,0.0001726,2]
[367805155,1750933849716,-484.13,0.0001726,2]
[367805157,1750933849727,-460.0,0.0001726,2]
[367805159,1750933849736,-460.0,0.0001726,2]
[367805161,1750933849745,-565.68,0.0001726,2]
[367805163,1750933849756,-738.04,0.0001726,2]
[367805164,1750933849765,-208.0989754,0.00017338,2]
[367805166,1750933849775,-500.0,0.00017338,2]
[367805168,1750933849784,-500.0,0.00017363,2]
[367805169,1750933849794,-580.8694489,0.00017363,2]
[367805171,1750933849803,-501.8969566,0.00017363,2]
[367805173,1750933849813,-637.47031252,0.00017366,2]
[367805175,1750933849822,-801.11485517,0.0001738,2]
[367805177,1750933849832,-500.0,0.00017392,2]
[367805178,1750933849841,-500.0,0.00017412,2]
[367805180,1750933849850,-482.34571679,0.00017412,2]
[367805182,1750933849860,-2331.10469927,0.00017452,2]
[367805184,1750933849869,-500.0,0.00017481,2]
[367805185,1750933849879,-355.26366281,0.00017534,2]
[367805187,1750933849888,-460.0,0.00017534,2]
[367805189,1750933849898,-307.77,0.00017534,2]
[367805190,1750933849907,-460.0,0.00017534,2]
[367805192,1750933849917,-460.0,0.00017534,2]
[367805194,1750933849926,-460.0,0.00017534,2]
[367805196,1750933849935,-460.0,0.00017534,2]
[367805198,1750933849945,-463.41,0.00017534,2]
[367805200,1750933849953,-460.0,0.00017534,2]
[367805201,1750933849962,-460.0,0.00017534,2]
[367805203,1750933849971,-591.06,0.00017534,2]
[367805205,1750933849981,-460.0,0.00017534,2]
[367805207,1750933849990,-460.0,0.00017534,2]
[367805208,1750933849999,-460.0,0.00017534,2]
[367805210,1750933850008,-460.0,0.00017534,2]
[367805212,1750933850017,-460.0,0.00017534,2]
[367805214,1750933850026,-460.0,0.00017534,2]
[367805215,1750933850034,-460.0,0.00017534,2]
[367805217,1750933850044,-1441.7,0.00017534,2]
[367805219,1750933850053,-460.0,0.00017534,2]
[367805221,1750933850062,-460.0,0.00017534,2]
[367805223,1750933850071,-460.0,0.00017534,2]
[367805224,1750933850080,-462.49,0.00017534,2]
[367805226,1750933850089,-350.9,0.00017534,2]
[367805228,1750933850098,-460.0,0.00017534,2]
[367805230,1750933850108,-460.0,0.00017534,2]
[367805232,1750933850117,-198.70633996,0.00017534,2]
[367805234,1750933850126,-460.0,0.00017534,2]
[367805235,1750933850136,-460.0,0.00017534,2]
[367805237,1750933850145,-460.0,0.00017534,2]
[367805239,1750933850153,-460.0,0.00017534,2]
[367805241,1750933850163,-460.0,0.00017534,2]
[367805243,1750933850177,-460.0,0.00017534,2]
[367805244,1750933850187,-460.0,0.00017534,2]
[367805246,1750933850197,-460.0,0.00017534,2]
[367805248,1750933850206,-460.0,0.00017534,2]
[367805250,1750933850218,-460.0,0.00017534,2]
[367805252,1750933850227,-1648.71,0.00017534,2]
[367805253,1750933850236,-460.0,0.00017534,2]
[367805255,1750933850246,-460.0,0.00017534,2]
[367805265,1750933850347,-1081.94,0.00017534,2]
[367805267,1750933850358,-460.0,0.00017534,2]
[367805268,1750933850367,-460.0,0.00017534,2]
[367805270,1750933850377,-518.88,0.00017534,2]
[367805272,1750933850386,-270.2874049,0.00017534,2]
[367805274,1750933850395,-460.0,0.00017534,2]
[367805276,1750933850404,-460.0,0.00017534,2]
[367805278,1750933850413,-460.0,0.00017534,2]
[367805279,1750933850422,-815.12,0.00017534,2]
[367805281,1750933850431,-460.0,0.00017534,2]
[367805283,1750933850441,-460.0,0.00017534,2]
[367805285,1750933850450,-460.0,0.00017534,2]
[367805287,1750933850458,-460.0,0.00017534,2]
[367805288,1750933850467,-460.0,0.00017534,2]
[367805290,1750933850476,-460.0,0.00017534,2]
[367805292,1750933850485,-556.41,0.00017534,2]
[367805294,1750933850495,-460.0,0.00017534,2]
[367805295,1750933850504,-1801.03,0.00017534,2]
[367805297,1750933850514,-551.17064741,0.00017534,2]
[367805299,1750933850523,-1794.47,0.00017534,2]
[367805301,1750933850532,-460.0,0.00017534,2]
[367805303,1750933850542,-460.0,0.00017534,2]
[367805304,1750933850551,-480.99,0.00017534,2]
[367805306,1750933850560,-1099.8,0.00017534,2]
[367805308,1750933850570,-612.7,0.00017534,2]
[367805310,1750933850579,-460.0,0.00017534,2]
[367805312,1750933850589,-481.52350909,0.00017534,2]
[367805313,1750933850598,-2903.12,0.00017534,2]
[367805315,1750933850607,-460.0,0.00017534,2]
[367805317,1750933850616,-1414.34,0.00017534,2]
[367805319,1750933850626,-724.47,0.00017534,2]
[367805321,1750933850636,-460.0,0.00017534,2]
[367805323,1750933850645,-460.0,0.00017534,2]
[367805324,1750933850656,-463.24,0.00017534,2]
[367805326,1750933850665,-3629.9,0.00017534,2]
[367805328,1750933850675,-1491.13,0.00017534,2]
[367805330,1750933850684,-460.0,0.00017534,2]
[367805331,1750933850693,-266.37745892,0.00017534,2]
[367805333,1750933850703,-515.47342929,0.00017534,2]
[367805335,1750933850712,-3220.69,0.00017534,2]
[367805337,1750933850721,-460.0,0.00017534,2]
[367805339,1750933850732,-1275.24,0.00017534,2]
[367805341,1750933850741,-958.7,0.00017534,2]
[367805342,1750933850750,-460.0,0.00017534,2]
[367805344,1750933850760,-460.0,0.00017534,2]
[367805346,1750933850769,-572.45,0.00017534,2]
[367805348,1750933850778,-460.0,0.00017534,2]
[367805349,1750933850787,-460.0,0.00017534,2]
[367805351,1750933850796,-460.0,0.00017534,2]
[367805353,1750933850805,-460.0,0.00017534,2]
[367805355,1750933850814,-1002.89,0.00017534,2]
[367805357,1750933850823,-460.0,0.00017534,2]
[367805359,1750933850832,-460.0,0.00017534,2]
[367805360,1750933850841,-460.0,0.00017534,2]
[367805362,1750933850851,-460.0,0.00017534,2]
[367805364,1750933850860,-739.13,0.00017534,2]
[367805366,1750933850869,-460.0,0.00017534,2]
[367805368,1750933850878,-460.0,0.00017534,2]
[367805369,1750933850887,-1427.44,0.00017534,2]
[367805371,1750933850896,-460.0,0.00017534,2]
[367805373,1750933850905,-460.0,0.00017534,2]
[367805375,1750933850915,-1553.5,0.00017534,2]
[367805377,1750933850924,-1338.84,0.00017534,2]
[367805378,1750933850933,-460.0,0.00017534,2]
[367805380,1750933850942,-460.0,0.00017534,2]
[367805382,1750933850952,-460.0,0.00017534,2]
[367805384,1750933850961,-460.0,0.00017534,2]
[367805386,1750933850970,-1072.36,0.00017534,2]
[367805387,1750933850979,-633.4,0.00017534,2]
[367805389,1750933850988,-460.0,0.00017534,2]
[367805391,1750933850997,-460.0,0.00017534,2]
[367805393,1750933851007,-1714.32,0.00017534,2]
[367805395,1750933851016,-460.0,0.00017534,2]
[367805396,1750933851025,-460.0,0.00017534,2]
[367805398,1750933851035,-460.0,0.00017534,2]
[367805400,1750933851044,-460.0,0.00017534,2]
[367805402,1750933851054,-791.06,0.00017534,2]
[367805404,1750933851063,-484.13,0.00017534,2]
[367805406,1750933851072,-460.0,0.00017534,2]
[367805407,1750933851082,-553.05872448,0.00017534,2]
[367805409,1750933851092,-738.04,0.00017534,2]
[367805411,1750933851101,-500.0,0.00017549,2]
[367805413,1750933851111,-500.0,0.00017549,2]
[367805415,1750933851120,-500.0,0.00017549,2]
[367805417,1750933851129,-500.0,0.00017549,2]
[367805418,1750933851139,-500.0,0.00017549,2]
[367805420,1750933851148,-500.0,0.00017549,2]
[367805422,1750933851157,-500.0,0.00017549,2]
[367805424,1750933851166,-395.5265441,0.00017549,2]
[367805426,1750933851175,-500.0,0.00017549,2]
[367805428,1750933851184,-500.0,0.00017549,2]
[367805429,1750933851193,-500.0,0.00017549,2]
[367805431,1750933851202,-500.0,0.00017551,2]
[367805433,1750933851212,-151.0,0.00017561,2]
[367805435,1750933851221,-501.7024217,0.00017577,2]
[367805437,1750933851230,-501.13814084,0.00017599,2]
[367805439,1750933851239,-500.0,0.00017616,2]
[367805441,1750933851248,-500.0,0.00017621,2]
[367805442,1750933851257,-500.0,0.00017621,2]
[367805444,1750933851266,-500.0,0.00017643,2]
[367805446,1750933851276,-500.876052,0.00017649,2]
[367805448,1750933851285,-501.57667532,0.00017649,2]
[367805450,1750933851293,-440.61238396,0.00017649,2]
[367805452,1750933851302,-500.0,0.00017671,2]
[367805453,1750933851311,-500.0,0.00017698,2]
[367805455,1750933851320,-637.47031252,0.00017708,2]
[367805457,1750933851329,-500.0,0.00017726,2]
[367805459,1750933851339,-2331.10469927,0.00017728,2]
[367805461,1750933851348,-560.10000001,0.00017753,2]
[367805463,1750933851357,-586.28,0.00017798,3]
[367805465,1750933851366,-500.0,0.00017806,2]
[367805466,1750933851376,-500.0,0.00017806,2]
[367805468,1750933851385,-302.90250576,0.00017806,2]
[367805470,1750933851395,-500.0,0.00017806,2]
[367805472,1750933851405,-500.0,0.00017806,2]
[367805474,1750933851414,-500.0,0.00017806,2]
[367805476,1750933851424,-393.9456505,0.00017806,2]
[367805478,1750933851433,-151.0,0.00017808,2]
[367805479,1750933851442,-151.0,0.00017808,2]
[367805481,1750933851451,-497.77,0.00017808,2]
[367805483,1750933851461,-460.0,0.00017808,2]
[367805485,1750933851469,-463.41,0.00017808,2]
[367805487,1750933851478,-460.0,0.00017808,2]
[367805489,1750933851487,-591.06,0.00017808,2]
[367805491,1750933851496,-460.0,0.00017808,2]
[367805492,1750933851505,-365.06912106,0.00017808,2]
[367805494,1750933851515,-460.0,0.00017808,2]
[367805496,1750933851525,-460.0,0.00017808,2]
[367805498,1750933851533,-460.0,0.00017808,2]
[367805500,1750933851542,-460.0,0.00017808,2]
[367805501,1750933851552,-460.0,0.00017808,2]
[367805503,1750933851561,-1441.7,0.00017808,2]
[367805505,1750933851571,-460.0,0.00017808,2]
[367805507,1750933851580,-460.0,0.00017808,2]
[367805508,1750933851589,-460.0,0.00017808,2]
[367805510,1750933851598,-582.141452,0.00017808,2]
[367805512,1750933851607,-460.0,0.00017808,2]
[367805513,1750933851616,-460.0,0.00017808,2]
[367805515,1750933851624,-460.0,0.00017808,2]
[367805517,1750933851634,-460.0,0.00017808,2]
[367805519,1750933851644,-460.0,0.00017808,2]
[367805520,1750933851654,-460.0,0.00017808,2]
[367805522,1750933851663,-460.0,0.00017808,2]
[367805524,1750933851672,-460.0,0.00017808,2]
[367805526,1750933851682,-460.0,0.00017808,2]
[367805527,1750933851692,-460.0,0.00017808,2]
[367805529,1750933851702,-1648.71,0.00017808,2]
[367805531,1750933851712,-460.0,0.00017808,2]
[367805533,1750933851721,-460.0,0.00017808,2]
[367805534,1750933851731,-1081.94,0.00017808,2]
[367805535,1750933851740,-460.0,0.00017808,2]
[367805536,1750933851750,-460.0,0.00017808,2]
[367805537,1750933851759,-518.88,0.00017808,2]
[367805538,1750933851768,-460.0,0.00017808,2]
[367805539,1750933851778,-460.0,0.00017808,2]
[367805540,1750933851788,-460.0,0.00017808,2]
[367805541,1750933851796,-815.12,0.00017808,2]
[367805542,1750933851805,-460.0,0.00017808,2]
[367805543,1750933851814,-460.0,0.00017808,2]
[367805544,1750933851824,-460.0,0.00017808,2]
[367805545,1750933851833,-460.0,0.00017808,2]
[367805546,1750933851843,-460.0,0.00017808,2]
[367805547,1750933851852,-460.0,0.00017808,2]
[367805548,1750933851861,-556.41,0.00017808,2]
[367805549,1750933851870,-460.0,0.00017808,2]
[367805550,1750933851879,-1801.03,0.00017808,2]
[367805551,1750933851888,-1794.47,0.00017808,2]
[367805552,1750933851897,-460.0,0.00017808,2]
[367805553,1750933851906,-460.0,0.00017808,2]
[367805554,1750933851915,-1099.8,0.00017808,2]
[367805555,1750933851924,-612.7,0.00017808,2]
[367805556,1750933851934,-460.0,0.00017808,2]
[367805557,1750933851943,-2903.12,0.00017808,2]
[367805558,1750933851952,-460.0,0.00017808,2]
[367805559,1750933851961,-1414.34,0.00017808,2]
[367805560,1750933851971,-724.47,0.00017808,2]
[367805561,1750933851980,-202.10826298,0.00017808,2]
[367805562,1750933851989,-460.0,0.00017808,2]
[367805563,1750933851998,-463.24,0.00017808,2]
[367805564,1750933852007,-3629.9,0.00017808,2]
[367805565,1750933852016,-1491.13,0.00017808,2]
[367805570,1750933852113,-460.0,0.00017808,2]
[367805572,1750933852123,-3220.69,0.00017808,2]
[367805574,1750933852132,-460.0,0.00017808,2]